[Event "Titled Tuesday Blitz July 25 Early 2023"]
[White "Sipila, Vilka"]
[Black "Reprintsev, Alexander"]
[WhiteFideId "505455"]
[BlackFideId "14100541"]
[WhiteElo "2601"]
[BlackElo "2443"]
[Result "1-0"]
[Round "5"]
[TimeControl "180+2"]
[Date "2023.07.25"]
[WhiteClock "0:00:04"]
[BlackClock "0:00:12"]
[Board "109"]

1. Nf3 {[%clk 0:03:00]}  Nc6 {[%clk 0:02:57]} 2. d4 {[%clk 0:03:00]}  d5 {[%clk 0:02:57]} 3. g3 {[%clk 0:02:59]}  Bf5 {[%clk 0:02:57]} 4. Bg2 {[%clk 0:02:58]}  Nb4 {[%clk 0:02:57]} 5. Na3 {[%clk 0:02:58]}  e6 {[%clk 0:02:56]} 6. O-O {[%clk 0:02:58]}  h6 {[%clk 0:02:57]} 7. c4 {[%clk 0:02:56]}  Nf6 {[%clk 0:02:52]} 8. Ne5 {[%clk 0:02:55]}  c6 {[%clk 0:02:49]} 9. c5 {[%clk 0:02:45]}  a5 {[%clk 0:02:43]} 10. Bd2 {[%clk 0:02:39]}  Be7 {[%clk 0:02:43]} 11. Qb3 {[%clk 0:02:39]}  O-O {[%clk 0:02:43]} 12. Bxb4 {[%clk 0:02:38]}  axb4 {[%clk 0:02:43]} 13. Qxb4 {[%clk 0:02:39]}  b5 {[%clk 0:02:43]} 14. Nxc6 {[%clk 0:02:38]}  Qe8 {[%clk 0:02:43]} 15. Qxb5 {[%clk 0:02:22]}  Ne4 {[%clk 0:02:35]} 16. f3 {[%clk 0:02:15]}  Nd2 {[%clk 0:02:31]} 17. Rfd1 {[%clk 0:02:13]}  Nc4 {[%clk 0:02:30]} 18. Nxc4 {[%clk 0:02:12]}  dxc4 {[%clk 0:02:30]} 19. e4 {[%clk 0:02:09]}  Bg6 {[%clk 0:02:26]} 20. Nxe7+ {[%clk 0:02:08]}  Qxe7 {[%clk 0:02:26]} 21. Qxc4 {[%clk 0:02:09]}  f5 {[%clk 0:02:24]} 22. d5 {[%clk 0:02:02]}  fxe4 {[%clk 0:02:24]} 23. d6 {[%clk 0:01:57]}  Qf6 {[%clk 0:02:22]} 24. fxe4 {[%clk 0:01:54]}  Qxb2 {[%clk 0:02:15]} 25. d7 {[%clk 0:01:43]}  Rad8 {[%clk 0:02:05]} 26. c6 {[%clk 0:01:40]}  Rf2 {[%clk 0:02:04]} 27. Qxe6+ {[%clk 0:00:53]}  Bf7 {[%clk 0:02:03]} 28. Qh3 {[%clk 0:00:54]}  Qb6 {[%clk 0:02:03]} 29. Kh1 {[%clk 0:00:45]}  Qxc6 {[%clk 0:02:01]} 30. e5 {[%clk 0:00:41]}  Qa6 {[%clk 0:01:14]} 31. Rd6 {[%clk 0:00:34]}  Qe2 {[%clk 0:01:05]} 32. e6 {[%clk 0:00:23]}  Bg6 {[%clk 0:00:57]} 33. Rd4 {[%clk 0:00:13]}  Rf6 {[%clk 0:00:40]} 34. Rc1 {[%clk 0:00:04]}  Rxe6 {[%clk 0:00:38]} 35. Rc8 {[%clk 0:00:04]}  Qe1+ {[%clk 0:00:37]} 36. Bf1 {[%clk 0:00:04]}  Be4+ {[%clk 0:00:37]} 37. Rxe4 {[%clk 0:00:03]}  Qxe4+ {[%clk 0:00:37]} 38. Qg2 {[%clk 0:00:03]}  Qd4 {[%clk 0:00:11]} 39. Rxd8+ {[%clk 0:00:04]}  Kh7 {[%clk 0:00:11]} 40. Qc2+ {[%clk 0:00:03]}  Rg6 {[%clk 0:00:12]} 41. Rh8+ {[%clk 0:00:03]}  Kxh8 {[%clk 0:00:11]} 42. Qxg6 {[%clk 0:00:03]}  Qxd7 {[%clk 0:00:11]} 43. Bd3 {[%clk 0:00:04]}  Qd5+ {[%clk 0:00:11]} 44. Be4 {[%clk 0:00:04]}  Qd1+ {[%clk 0:00:11]} 45. Kg2 {[%clk 0:00:05]}  Kg8 {[%clk 0:00:12]} 46. Qe8# {[%clk 0:00:04]} 1-0


[Site "https://www.chess.com"]

[Event "Titled Tuesday Blitz July 25 Early 2023"]
[White "Semenenko, Dmytry"]
[Black "Castaneda, Jhon David"]
[WhiteFideId "14118645"]
[BlackFideId "4405048"]
[WhiteElo "2439"]
[BlackElo "2595"]
[Result "0-1"]
[Round "5"]
[TimeControl "180+2"]
[Date "2023.07.25"]
[WhiteClock "0:00:11"]
[BlackClock "0:00:12"]
[Board "111"]

1. Nf3 {[%clk 0:02:59]}  d5 {[%clk 0:02:59]} 2. c4 {[%clk 0:02:59]}  e6 {[%clk 0:02:58]} 3. d4 {[%clk 0:02:59]}  Nf6 {[%clk 0:02:56]} 4. Nc3 {[%clk 0:02:59]}  dxc4 {[%clk 0:02:55]} 5. e3 {[%clk 0:02:57]}  a6 {[%clk 0:02:55]} 6. Bxc4 {[%clk 0:02:57]}  b5 {[%clk 0:02:55]} 7. Bd3 {[%clk 0:02:57]}  Bb7 {[%clk 0:02:56]} 8. O-O {[%clk 0:02:57]}  Nbd7 {[%clk 0:02:56]} 9. e4 {[%clk 0:02:57]}  c5 {[%clk 0:02:56]} 10. e5 {[%clk 0:02:47]}  cxd4 {[%clk 0:02:53]} 11. exf6 {[%clk 0:02:43]}  dxc3 {[%clk 0:02:52]} 12. fxg7 {[%clk 0:02:42]}  Bxg7 {[%clk 0:02:53]} 13. bxc3 {[%clk 0:02:38]}  Nc5 {[%clk 0:02:48]} 14. Be2 {[%clk 0:02:28]}  Ne4 {[%clk 0:02:44]} 15. Qc2 {[%clk 0:02:07]}  Rc8 {[%clk 0:02:37]} 16. a4 {[%clk 0:01:57]}  Nxc3 {[%clk 0:02:35]} 17. Bb2 {[%clk 0:01:51]}  b4 {[%clk 0:02:28]} 18. Bxc3 {[%clk 0:01:36]}  Rxc3 {[%clk 0:02:23]} 19. Qb2 {[%clk 0:01:36]}  a5 {[%clk 0:02:18]} 20. Bb5+ {[%clk 0:01:34]}  Kf8 {[%clk 0:02:18]} 21. Rad1 {[%clk 0:01:31]}  Bd5 {[%clk 0:02:10]} 22. Qd2 {[%clk 0:01:28]}  Qf6 {[%clk 0:01:44]} 23. Rfe1 {[%clk 0:01:23]}  Bh6 {[%clk 0:01:19]} 24. Qe2 {[%clk 0:01:02]}  Rxf3 {[%clk 0:00:40]} 25. Rxd5 {[%clk 0:00:37]}  Rxf2 {[%clk 0:00:33]} 26. Rd8+ {[%clk 0:00:36]}  Qxd8 {[%clk 0:00:32]} 27. Qxf2 {[%clk 0:00:36]}  Qd5 {[%clk 0:00:20]} 28. Qh4 {[%clk 0:00:29]}  Bg7 {[%clk 0:00:15]} 29. Bc4 {[%clk 0:00:28]}  Qd4+ {[%clk 0:00:15]} 30. Qxd4 {[%clk 0:00:20]}  Bxd4+ {[%clk 0:00:16]} 31. Kh1 {[%clk 0:00:20]}  Ke7 {[%clk 0:00:17]} 32. Re4 {[%clk 0:00:20]}  e5 {[%clk 0:00:16]} 33. g4 {[%clk 0:00:19]}  f6 {[%clk 0:00:16]} 34. h4 {[%clk 0:00:18]}  Rc8 {[%clk 0:00:16]} 35. Bb5 {[%clk 0:00:18]}  Rc3 {[%clk 0:00:14]} 36. Re1 {[%clk 0:00:18]}  Rh3+ {[%clk 0:00:14]} 37. Kg2 {[%clk 0:00:18]}  Rxh4 {[%clk 0:00:15]} 38. Kf3 {[%clk 0:00:18]}  Rh3+ {[%clk 0:00:14]} 39. Ke4 {[%clk 0:00:18]}  Rg3 {[%clk 0:00:14]} 40. Be2 {[%clk 0:00:16]}  Re3+ {[%clk 0:00:13]} 41. Kd5 {[%clk 0:00:16]}  b3 {[%clk 0:00:12]} 42. g5 {[%clk 0:00:11]}  fxg5 {[%clk 0:00:12]} 0-1


[Site "https://www.chess.com"]

[Event "Titled Tuesday Blitz July 25 Early 2023"]
[White "Nurgaliyeva, Zarina"]
[Black "Rietze, Clemens, Dr."]
[WhiteFideId "13730096"]
[BlackFideId "24620351"]
[WhiteElo "2595"]
[BlackElo "2437"]
[Result "1-0"]
[Round "5"]
[TimeControl "180+2"]
[Date "2023.07.25"]
[WhiteClock "0:00:19"]
[BlackClock "0:00:26"]
[Board "112"]

1. e4 {[%clk 0:03:00]}  c5 {[%clk 0:02:57]} 2. Nf3 {[%clk 0:02:57]}  Nc6 {[%clk 0:02:56]} 3. Bb5 {[%clk 0:02:45]}  e6 {[%clk 0:02:55]} 4. O-O {[%clk 0:02:37]}  Nge7 {[%clk 0:02:55]} 5. d4 {[%clk 0:02:35]}  cxd4 {[%clk 0:02:54]} 6. Nxd4 {[%clk 0:02:36]}  Ng6 {[%clk 0:02:55]} 7. Nxc6 {[%clk 0:02:34]}  bxc6 {[%clk 0:02:54]} 8. Be2 {[%clk 0:02:32]}  d5 {[%clk 0:02:49]} 9. exd5 {[%clk 0:02:29]}  cxd5 {[%clk 0:02:43]} 10. c4 {[%clk 0:02:29]}  d4 {[%clk 0:02:34]} 11. Bf3 {[%clk 0:02:10]}  Rb8 {[%clk 0:02:33]} 12. Qa4+ {[%clk 0:02:10]}  Bd7 {[%clk 0:02:33]} 13. Qxa7 {[%clk 0:02:10]}  Nh4 {[%clk 0:02:03]} 14. Be4 {[%clk 0:02:01]}  f5 {[%clk 0:01:59]} 15. Bc2 {[%clk 0:01:53]}  Bc6 {[%clk 0:01:48]} 16. Ba4 {[%clk 0:01:51]}  Rc8 {[%clk 0:01:39]} 17. Re1 {[%clk 0:01:28]}  Qd6 {[%clk 0:01:03]} 18. b3 {[%clk 0:00:39]}  Bxa4 {[%clk 0:00:51]} 19. Qxa4+ {[%clk 0:00:40]}  Kf7 {[%clk 0:00:49]} 20. Ba3 {[%clk 0:00:28]}  Qc7 {[%clk 0:00:47]} 21. Bxf8 {[%clk 0:00:22]}  Rhxf8 {[%clk 0:00:48]} 22. Qa6 {[%clk 0:00:20]}  Rfe8 {[%clk 0:00:45]} 23. Nd2 {[%clk 0:00:19]}  Rb8 {[%clk 0:00:44]} 24. g3 {[%clk 0:00:16]}  Rb6 {[%clk 0:00:40]} 25. Qa5 {[%clk 0:00:15]}  Ng6 {[%clk 0:00:40]} 26. Nf3 {[%clk 0:00:15]}  Rb7 {[%clk 0:00:15]} 27. Qxc7+ {[%clk 0:00:14]}  Rxc7 {[%clk 0:00:16]} 28. Nxd4 {[%clk 0:00:15]}  Ne5 {[%clk 0:00:16]} 29. Rxe5 {[%clk 0:00:14]}  Kf6 {[%clk 0:00:16]} 30. f4 {[%clk 0:00:13]}  Rd7 {[%clk 0:00:16]} 31. Nxf5 {[%clk 0:00:12]}  Red8 {[%clk 0:00:15]} 32. Ne3 {[%clk 0:00:11]}  Rd2 {[%clk 0:00:15]} 33. Ng4+ {[%clk 0:00:08]}  Kf7 {[%clk 0:00:16]} 34. Rae1 {[%clk 0:00:09]}  h5 {[%clk 0:00:15]} 35. Nf2 {[%clk 0:00:08]}  Rxa2 {[%clk 0:00:15]} 36. R5e2 {[%clk 0:00:08]}  Ra3 {[%clk 0:00:15]} 37. Rxe6 {[%clk 0:00:08]}  Rxb3 {[%clk 0:00:15]} 38. Nh3 {[%clk 0:00:09]}  Kg8 {[%clk 0:00:10]} 39. Ng5 {[%clk 0:00:09]}  Rbb8 {[%clk 0:00:10]} 40. c5 {[%clk 0:00:09]}  Rbc8 {[%clk 0:00:10]} 41. c6 {[%clk 0:00:09]}  Rf8 {[%clk 0:00:10]} 42. R1e5 {[%clk 0:00:07]}  Rc7 {[%clk 0:00:10]} 43. Rc5 {[%clk 0:00:07]}  Rfc8 {[%clk 0:00:10]} 44. Rd6 {[%clk 0:00:08]}  Kf8 {[%clk 0:00:10]} 45. Ne6+ {[%clk 0:00:08]}  Ke7 {[%clk 0:00:10]} 46. Rcd5 {[%clk 0:00:05]}  Rxc6 {[%clk 0:00:09]} 47. Rxc6 {[%clk 0:00:05]}  Rxc6 {[%clk 0:00:10]} 48. Nxg7 {[%clk 0:00:05]}  Rc1+ {[%clk 0:00:11]} 49. Kg2 {[%clk 0:00:06]}  Kf7 {[%clk 0:00:11]} 50. Nxh5 {[%clk 0:00:06]}  Kg6 {[%clk 0:00:12]} 51. g4 {[%clk 0:00:06]}  Rc2+ {[%clk 0:00:12]} 52. Kg3 {[%clk 0:00:06]}  Rc3+ {[%clk 0:00:13]} 53. Kh4 {[%clk 0:00:07]}  Rc2 {[%clk 0:00:14]} 54. Rd6+ {[%clk 0:00:08]}  Kf7 {[%clk 0:00:14]} 55. Kg5 {[%clk 0:00:08]}  Rxh2 {[%clk 0:00:14]} 56. Rd7+ {[%clk 0:00:09]}  Ke6 {[%clk 0:00:15]} 57. Ra7 {[%clk 0:00:09]}  Kd5 {[%clk 0:00:15]} 58. f5 {[%clk 0:00:09]}  Ke4 {[%clk 0:00:15]} 59. f6 {[%clk 0:00:10]}  Rb2 {[%clk 0:00:16]} 60. f7 {[%clk 0:00:10]}  Rb5+ {[%clk 0:00:17]} 61. Kg6 {[%clk 0:00:11]}  Rb8 {[%clk 0:00:17]} 62. Nf6+ {[%clk 0:00:11]}  Kf3 {[%clk 0:00:17]} 63. Kg7 {[%clk 0:00:12]}  Kf4 {[%clk 0:00:17]} 64. f8=Q {[%clk 0:00:12]}  Rxf8 {[%clk 0:00:18]} 65. Kxf8 {[%clk 0:00:13]}  Kg5 {[%clk 0:00:18]} 66. Kg7 {[%clk 0:00:13]}  Kh4 {[%clk 0:00:19]} 67. Kg6 {[%clk 0:00:14]}  Kg3 {[%clk 0:00:20]} 68. g5 {[%clk 0:00:14]}  Kf4 {[%clk 0:00:21]} 69. Kh6 {[%clk 0:00:15]}  Ke5 {[%clk 0:00:22]} 70. g6 {[%clk 0:00:15]}  Kf4 {[%clk 0:00:23]} 71. g7 {[%clk 0:00:16]}  Ke5 {[%clk 0:00:24]} 72. g8=Q {[%clk 0:00:16]}  Kf5 {[%clk 0:00:25]} 73. Qg5+ {[%clk 0:00:17]}  Ke6 {[%clk 0:00:25]} 74. Ra6+ {[%clk 0:00:17]}  Ke7 {[%clk 0:00:25]} 75. Qg7+ {[%clk 0:00:18]}  Kd8 {[%clk 0:00:26]} 76. Ra8# {[%clk 0:00:19]} 1-0


[Site "https://www.chess.com"]

[Event "Titled Tuesday Blitz July 25 Early 2023"]
[White "Tologon tegin, Semetei"]
[Black "Ionescu, Mihai"]
[WhiteFideId "13800574"]
[BlackFideId "1202499"]
[WhiteElo "2590"]
[BlackElo "2436"]
[Result "1/2-1/2"]
[Round "5"]
[TimeControl "180+2"]
[Date "2023.07.25"]
[WhiteClock "0:00:42"]
[BlackClock "0:00:07"]
[Board "113"]

1. b3 {[%clk 0:02:56]}  g6 {[%clk 0:02:58]} 2. Bb2 {[%clk 0:02:57]}  Nf6 {[%clk 0:02:58]} 3. e4 {[%clk 0:02:56]}  d6 {[%clk 0:02:57]} 4. Nf3 {[%clk 0:02:56]}  Bg7 {[%clk 0:02:56]} 5. h4 {[%clk 0:02:52]}  h5 {[%clk 0:02:55]} 6. Ng5 {[%clk 0:02:51]}  O-O {[%clk 0:02:54]} 7. d3 {[%clk 0:02:45]}  c5 {[%clk 0:02:51]} 8. Nd2 {[%clk 0:02:43]}  Nc6 {[%clk 0:02:51]} 9. Be2 {[%clk 0:02:40]}  Bg4 {[%clk 0:02:30]} 10. f3 {[%clk 0:02:39]}  Bd7 {[%clk 0:02:29]} 11. Nc4 {[%clk 0:02:02]}  b5 {[%clk 0:02:26]} 12. Ne3 {[%clk 0:02:02]}  Nh7 {[%clk 0:02:16]} 13. Bxg7 {[%clk 0:02:00]}  Kxg7 {[%clk 0:02:15]} 14. Nxh7 {[%clk 0:01:58]}  Kxh7 {[%clk 0:02:14]} 15. g4 {[%clk 0:01:58]}  e6 {[%clk 0:01:54]} 16. gxh5 {[%clk 0:01:50]}  gxh5 {[%clk 0:01:54]} 17. f4 {[%clk 0:01:50]}  Qf6 {[%clk 0:01:39]} 18. Bxh5 {[%clk 0:01:45]}  Qxf4 {[%clk 0:01:37]} 19. Qe2 {[%clk 0:01:43]}  Nd4 {[%clk 0:01:27]} 20. Qf2 {[%clk 0:01:41]}  Qxe3+ {[%clk 0:01:05]} 21. Qxe3 {[%clk 0:01:42]}  Nxc2+ {[%clk 0:01:05]} 22. Kd2 {[%clk 0:01:42]}  Nxe3 {[%clk 0:01:06]} 23. Kxe3 {[%clk 0:01:43]}  f5 {[%clk 0:01:07]} 24. exf5 {[%clk 0:01:39]}  Rxf5 {[%clk 0:01:04]} 25. Bf3 {[%clk 0:01:38]}  Rxf3+ {[%clk 0:00:54]} 26. Kxf3 {[%clk 0:01:37]}  Bc6+ {[%clk 0:00:55]} 27. Ke3 {[%clk 0:01:33]}  Bxh1 {[%clk 0:00:53]} 28. Rxh1 {[%clk 0:01:34]}  Rf8 {[%clk 0:00:40]} 29. a4 {[%clk 0:01:32]}  bxa4 {[%clk 0:00:38]} 30. bxa4 {[%clk 0:01:33]}  Rg8 {[%clk 0:00:27]} 31. Rb1 {[%clk 0:01:30]}  Kh6 {[%clk 0:00:22]} 32. Rb7 {[%clk 0:01:28]}  Rg7 {[%clk 0:00:13]} 33. Rb8 {[%clk 0:01:25]}  Rg4 {[%clk 0:00:12]} 34. Rh8+ {[%clk 0:01:19]}  Kg7 {[%clk 0:00:11]} 35. Rd8 {[%clk 0:01:17]}  Rxa4 {[%clk 0:00:04]} 36. Rxd6 {[%clk 0:01:16]}  Rxh4 {[%clk 0:00:04]} 37. Rxe6 {[%clk 0:01:15]}  Kf8 {[%clk 0:00:03]} 38. Ra6 {[%clk 0:01:14]}  Rh7 {[%clk 0:00:02]} 39. Ke4 {[%clk 0:01:13]}  Rc7 {[%clk 0:00:03]} 40. Kd5 {[%clk 0:01:12]}  Ke7 {[%clk 0:00:03]} 41. Rc6 {[%clk 0:00:46]}  Rxc6 {[%clk 0:00:03]} 42. Kxc6 {[%clk 0:00:46]}  Kd8 {[%clk 0:00:03]} 43. Kxc5 {[%clk 0:00:44]}  Kc7 {[%clk 0:00:04]} 44. Kb5 {[%clk 0:00:42]}  Kd6 {[%clk 0:00:04]} 45. Ka6 {[%clk 0:00:42]}  Kd5 {[%clk 0:00:05]} 46. Kxa7 {[%clk 0:00:43]}  Kd4 {[%clk 0:00:06]} 47. Kb6 {[%clk 0:00:42]}  Kxd3 {[%clk 0:00:07]} 1/2-1/2


[Site "https://www.chess.com"]

[Event "Titled Tuesday Blitz July 25 Early 2023"]
[White "Begunov, Konstantin"]
[Black "Al-Tarboush, Ward"]
[WhiteFideId "4118510"]
[BlackFideId "7601450"]
[WhiteElo "2434"]
[BlackElo "2578"]
[Result "0-1"]
[Round "5"]
[TimeControl "180+2"]
[Date "2023.07.25"]
[WhiteClock "0:00:00"]
[BlackClock "0:00:52"]
[Board "114"]

1. d4 {[%clk 0:03:00]}  d5 {[%clk 0:01:52]} 2. c4 {[%clk 0:02:59]}  c6 {[%clk 0:01:51]} 3. Nc3 {[%clk 0:02:59]}  Nf6 {[%clk 0:01:49]} 4. Nf3 {[%clk 0:02:59]}  dxc4 {[%clk 0:01:49]} 5. a4 {[%clk 0:02:59]}  Bf5 {[%clk 0:01:49]} 6. e3 {[%clk 0:02:59]}  e6 {[%clk 0:01:48]} 7. Bxc4 {[%clk 0:02:59]}  Bb4 {[%clk 0:01:48]} 8. O-O {[%clk 0:02:58]}  Nbd7 {[%clk 0:01:48]} 9. Qe2 {[%clk 0:02:55]}  Bg6 {[%clk 0:01:47]} 10. Bd2 {[%clk 0:02:45]}  O-O {[%clk 0:01:47]} 11. Rac1 {[%clk 0:02:31]}  Qe7 {[%clk 0:01:37]} 12. Bb3 {[%clk 0:02:30]}  e5 {[%clk 0:01:34]} 13. dxe5 {[%clk 0:02:25]}  Nxe5 {[%clk 0:01:35]} 14. Nxe5 {[%clk 0:02:15]}  Qxe5 {[%clk 0:01:35]} 15. f3 {[%clk 0:02:14]}  Rad8 {[%clk 0:01:33]} 16. e4 {[%clk 0:02:10]}  Nh5 {[%clk 0:01:24]} 17. f4 {[%clk 0:02:00]}  Qd4+ {[%clk 0:01:19]} 18. Be3 {[%clk 0:01:59]}  Qd3 {[%clk 0:01:19]} 19. f5 {[%clk 0:01:45]}  Qxe2 {[%clk 0:01:11]} 20. Nxe2 {[%clk 0:01:44]}  Rd3 {[%clk 0:01:12]} 21. Bc4 {[%clk 0:00:39]}  Rxe3 {[%clk 0:01:11]} 22. fxg6 {[%clk 0:00:30]}  hxg6 {[%clk 0:01:10]} 23. Rf3 {[%clk 0:00:10]}  Rxe4 {[%clk 0:01:06]} 24. b3 {[%clk 0:00:10]}  Nf6 {[%clk 0:01:01]} 25. Ng3 {[%clk 0:00:08]}  Re5 {[%clk 0:00:55]} 26. Rd1 {[%clk 0:00:09]}  Rfe8 {[%clk 0:00:54]} 27. Nf1 {[%clk 0:00:09]}  Bc5+ {[%clk 0:00:54]} 28. Kh1 {[%clk 0:00:08]}  Re1 {[%clk 0:00:55]} 29. Rfd3 {[%clk 0:00:09]}  Ng4 {[%clk 0:00:52]} 30. Rd7 {[%clk 0:00:03]}  Nf2+ {[%clk 0:00:51]} 31. Kg1 {[%clk 0:00:00]}  Nxd1+ {[%clk 0:00:52]} 0-1


[Site "https://www.chess.com"]

[Event "Titled Tuesday Blitz July 25 Early 2023"]
[White "Sadykov, Ramil"]
[Black "Manukian, Artak"]
[WhiteFideId "24113590"]
[BlackFideId "13301373"]
[WhiteElo "2578"]
[BlackElo "2433"]
[Result "1/2-1/2"]
[Round "5"]
[TimeControl "180+2"]
[Date "2023.07.25"]
[WhiteClock "0:00:22"]
[BlackClock "0:01:02"]
[Board "115"]

1. e4 {[%clk 0:02:59]}  c6 {[%clk 0:03:00]} 2. d4 {[%clk 0:02:55]}  d5 {[%clk 0:03:00]} 3. e5 {[%clk 0:02:50]}  Bf5 {[%clk 0:03:00]} 4. Nc3 {[%clk 0:02:51]}  e6 {[%clk 0:03:00]} 5. g4 {[%clk 0:02:51]}  Bg6 {[%clk 0:02:59]} 6. Nge2 {[%clk 0:02:52]}  c5 {[%clk 0:02:59]} 7. h4 {[%clk 0:02:51]}  h5 {[%clk 0:02:59]} 8. Nf4 {[%clk 0:02:51]}  Bh7 {[%clk 0:02:59]} 9. g5 {[%clk 0:02:51]}  cxd4 {[%clk 0:02:54]} 10. Nb5 {[%clk 0:02:48]}  Nc6 {[%clk 0:02:44]} 11. Qxh5 {[%clk 0:02:46]}  g6 {[%clk 0:02:30]} 12. Qe2 {[%clk 0:02:39]}  a6 {[%clk 0:02:25]} 13. Nd6+ {[%clk 0:02:27]}  Bxd6 {[%clk 0:02:22]} 14. exd6 {[%clk 0:02:28]}  Qxd6 {[%clk 0:02:23]} 15. Nd3 {[%clk 0:02:26]}  e5 {[%clk 0:02:17]} 16. Bf4 {[%clk 0:02:25]}  Kf8 {[%clk 0:02:06]} 17. Bxe5 {[%clk 0:02:05]}  Nxe5 {[%clk 0:02:03]} 18. Nxe5 {[%clk 0:02:03]}  Re8 {[%clk 0:01:59]} 19. f4 {[%clk 0:02:02]}  f6 {[%clk 0:01:55]} 20. gxf6 {[%clk 0:01:59]}  Nxf6 {[%clk 0:01:47]} 21. O-O-O {[%clk 0:01:59]}  Kg7 {[%clk 0:01:40]} 22. Rxd4 {[%clk 0:01:56]}  Nd7 {[%clk 0:01:31]} 23. Bg2 {[%clk 0:01:49]}  Nxe5 {[%clk 0:01:27]} 24. Rxd5 {[%clk 0:01:48]}  Nc6 {[%clk 0:01:12]} 25. Qd2 {[%clk 0:01:30]}  Qf6 {[%clk 0:01:03]} 26. Rd7+ {[%clk 0:01:08]}  Re7 {[%clk 0:01:01]} 27. Bxc6 {[%clk 0:00:22]}  bxc6 {[%clk 0:01:02]} 1/2-1/2


[Site "https://www.chess.com"]

[Event "Titled Tuesday Blitz July 25 Early 2023"]
[White "Fernandez, Fernando"]
[Black "Rangel, Daniel"]
[WhiteFideId "3802299"]
[BlackFideId "2124475"]
[WhiteElo "2571"]
[BlackElo "2429"]
[Result "0-1"]
[Round "5"]
[TimeControl "180+2"]
[Date "2023.07.25"]
[WhiteClock "0:00:00"]
[BlackClock "0:00:07"]
[Board "116"]

1. Nf3 {[%clk 0:02:57]}  Nf6 {[%clk 0:02:59]} 2. g3 {[%clk 0:02:55]}  e6 {[%clk 0:02:53]} 3. Bg2 {[%clk 0:02:53]}  d5 {[%clk 0:02:53]} 4. c4 {[%clk 0:02:49]}  Be7 {[%clk 0:02:51]} 5. d4 {[%clk 0:02:44]}  O-O {[%clk 0:02:46]} 6. O-O {[%clk 0:02:39]}  a5 {[%clk 0:02:45]} 7. Qc2 {[%clk 0:02:29]}  c6 {[%clk 0:02:44]} 8. Bf4 {[%clk 0:02:22]}  b5 {[%clk 0:02:41]} 9. cxb5 {[%clk 0:02:18]}  cxb5 {[%clk 0:02:42]} 10. Rc1 {[%clk 0:02:11]}  Na6 {[%clk 0:02:33]} 11. Nc3 {[%clk 0:02:03]}  b4 {[%clk 0:02:15]} 12. Nb5 {[%clk 0:01:51]}  Bb7 {[%clk 0:02:15]} 13. a4 {[%clk 0:01:46]}  Rc8 {[%clk 0:02:10]} 14. Qd1 {[%clk 0:01:40]}  Nd7 {[%clk 0:01:47]} 15. Ne5 {[%clk 0:00:53]}  Nxe5 {[%clk 0:01:43]} 16. dxe5 {[%clk 0:00:52]}  Qd7 {[%clk 0:01:16]} 17. h4 {[%clk 0:00:47]}  Rxc1 {[%clk 0:01:03]} 18. Rxc1 {[%clk 0:00:46]}  Rc8 {[%clk 0:01:04]} 19. Nd6 {[%clk 0:00:37]}  Rxc1 {[%clk 0:00:58]} 20. Qxc1 {[%clk 0:00:37]}  Bc6 {[%clk 0:00:56]} 21. b3 {[%clk 0:00:31]}  h6 {[%clk 0:00:50]} 22. h5 {[%clk 0:00:29]}  f6 {[%clk 0:00:40]} 23. Nb5 {[%clk 0:00:13]}  fxe5 {[%clk 0:00:34]} 24. Bxe5 {[%clk 0:00:12]}  Bxb5 {[%clk 0:00:34]} 25. axb5 {[%clk 0:00:12]}  Nc5 {[%clk 0:00:34]} 26. b6 {[%clk 0:00:11]}  Qb5 {[%clk 0:00:25]} 27. Bc7 {[%clk 0:00:07]}  Bf6 {[%clk 0:00:21]} 28. Bh3 {[%clk 0:00:06]}  Kf7 {[%clk 0:00:19]} 29. Qe3 {[%clk 0:00:06]}  Ne4 {[%clk 0:00:16]} 30. Kg2 {[%clk 0:00:04]}  Qc6 {[%clk 0:00:11]} 31. Qf3 {[%clk 0:00:03]}  Ng5 {[%clk 0:00:11]} 32. Qf4 {[%clk 0:00:02]}  d4+ {[%clk 0:00:11]} 33. f3 {[%clk 0:00:02]}  Qd5 {[%clk 0:00:08]} 34. Qc1 {[%clk 0:00:00]}  d3 {[%clk 0:00:07]} 0-1


[Site "https://www.chess.com"]

[Event "Titled Tuesday Blitz July 25 Early 2023"]
[White "Alvarado Diaz, Alejandro"]
[Black "Thecourseoisildur"]
[WhiteFideId "2276119"]
[WhiteElo "2427"]
[BlackElo "2565"]
[Result "0-1"]
[Round "5"]
[TimeControl "180+2"]
[Date "2023.07.25"]
[WhiteClock "0:00:00"]
[BlackClock "0:00:07"]
[Board "119"]

1. d4 {[%clk 0:03:00]}  Nf6 {[%clk 0:02:58]} 2. Bg5 {[%clk 0:03:01]}  h5 {[%clk 0:02:57]} 3. Bxf6 {[%clk 0:02:37]}  exf6 {[%clk 0:02:56]} 4. e3 {[%clk 0:02:28]}  d5 {[%clk 0:02:53]} 5. Nf3 {[%clk 0:02:27]}  c6 {[%clk 0:02:52]} 6. Bd3 {[%clk 0:02:25]}  Bd6 {[%clk 0:02:50]} 7. Nbd2 {[%clk 0:02:17]}  Be6 {[%clk 0:02:40]} 8. c4 {[%clk 0:02:07]}  Nd7 {[%clk 0:02:38]} 9. Rc1 {[%clk 0:02:03]}  g6 {[%clk 0:02:30]} 10. a3 {[%clk 0:01:46]}  f5 {[%clk 0:02:23]} 11. cxd5 {[%clk 0:01:41]}  cxd5 {[%clk 0:02:11]} 12. Qe2 {[%clk 0:01:18]}  Nf6 {[%clk 0:02:07]} 13. Ne5 {[%clk 0:01:14]}  Ne4 {[%clk 0:02:04]} 14. O-O {[%clk 0:00:53]}  h4 {[%clk 0:01:47]} 15. f3 {[%clk 0:00:51]}  Nxd2 {[%clk 0:01:41]} 16. Qxd2 {[%clk 0:00:52]}  h3 {[%clk 0:01:41]} 17. g3 {[%clk 0:00:53]}  Bxe5 {[%clk 0:01:36]} 18. dxe5 {[%clk 0:00:54]}  Qb6 {[%clk 0:01:36]} 19. Kh1 {[%clk 0:00:44]}  O-O {[%clk 0:01:33]} 20. Rfe1 {[%clk 0:00:33]}  Rac8 {[%clk 0:01:30]} 21. Bf1 {[%clk 0:00:32]}  Qb3 {[%clk 0:01:08]} 22. Bxh3 {[%clk 0:00:28]}  Rfd8 {[%clk 0:01:05]} 23. Qd4 {[%clk 0:00:24]}  Rc2 {[%clk 0:00:58]} 24. Rxc2 {[%clk 0:00:18]}  Qxc2 {[%clk 0:00:59]} 25. Bf1 {[%clk 0:00:16]}  Rc8 {[%clk 0:00:58]} 26. Kg1 {[%clk 0:00:14]}  b6 {[%clk 0:00:53]} 27. Bd3 {[%clk 0:00:12]}  Qb3 {[%clk 0:00:43]} 28. Bf1 {[%clk 0:00:06]}  a5 {[%clk 0:00:42]} 29. Re2 {[%clk 0:00:04]}  Rc1 {[%clk 0:00:39]} 30. Kg2 {[%clk 0:00:04]}  Bd7 {[%clk 0:00:29]} 31. Rf2 {[%clk 0:00:03]}  Rd1 {[%clk 0:00:19]} 32. Qf4 {[%clk 0:00:02]}  Bb5 {[%clk 0:00:17]} 33. Bxb5 {[%clk 0:00:01]}  Qxb5 {[%clk 0:00:18]} 34. h4 {[%clk 0:00:01]}  Qc6 {[%clk 0:00:12]} 35. e6 {[%clk 0:00:00]}  Qc1 {[%clk 0:00:07]} 0-1


[Site "https://www.chess.com"]